bitfinex-derivatives/quotes_BNBF0:USTF0_20250609
["timestamp","ask_amount","ask_price","bid_price","bid_amount"]
[1749476500373,0.843,654.91,653.76,0.30592266]
[1749476501668,1.14273829,654.9,653.76,0.30592266]
[1749476501873,1.14273829,654.89,653.76,0.30592266]
[1749476502074,1.14273829,654.88,653.76,0.30592266]
[1749476502373,1.14273829,654.87,653.76,0.30592266]
[1749476502570,1.14273829,654.86,653.76,0.30592266]
[1749476502771,1.14273829,654.85,653.76,0.30592266]
[1749476502974,1.14273829,654.84,653.76,0.30592266]
[1749476503171,1.14273829,654.83,653.76,0.30592266]
[1749476503474,1.14273829,654.82,653.76,0.30592266]
[1749476503674,1.14273829,654.81,653.76,0.30592266]
[1749476503870,1.14273829,654.8,653.76,0.30592266]
[1749476504071,1.14273829,654.79,653.76,0.30592266]
[1749476504277,1.14273829,654.78,653.76,0.30592266]
[1749476504477,1.14273829,654.77,653.76,0.30592266]
[1749476504772,1.14273829,654.76,653.76,0.30592266]
[1749476505073,1.14273829,654.75,653.76,0.30592266]
[1749476505277,1.14273829,654.74,653.76,0.30592266]
[1749476505478,1.14273829,654.73,653.76,0.30592266]
[1749476505773,1.14273829,654.89,653.76,0.30592266]
[1749476505973,1.14273829,654.88,653.76,0.30592266]
[1749476506278,1.14273829,654.87,653.76,0.30592266]
[1749476506480,1.14273829,654.86,653.76,0.30592266]
[1749476506774,1.14273829,654.85,653.76,0.30592266]
[1749476506975,1.14273829,654.84,653.76,0.30592266]
[1749476507175,1.14273829,654.83,653.76,0.30592266]
[1749476507476,1.14273829,654.82,653.76,0.30592266]
[1749476507677,1.14273829,654.81,653.76,0.30592266]
[1749476507876,1.14273829,654.8,653.76,0.30592266]
[1749476508175,1.14273829,654.79,653.76,0.30592266]
[1749476508379,1.14273829,654.78,653.76,0.30592266]
[1749476508574,1.14273829,654.77,653.76,0.30592266]
[1749476508874,1.14273829,654.76,653.76,0.30592266]
[1749476509075,1.14273829,654.75,653.76,0.30592266]
[1749476509280,1.14273829,654.74,653.76,0.30592266]
[1749476509572,2.38528026,654.9,653.76,0.30592266]
[1749476509773,1.14273829,654.89,653.76,0.30592266]
[1749476509978,1.14273829,654.88,653.76,0.30592266]
[1749476510179,1.14273829,654.87,653.76,0.30592266]
[1749476510475,1.14273829,654.86,653.76,0.30592266]
[1749476510677,1.14273829,654.85,653.76,0.30592266]
[1749476510875,1.14273829,654.84,653.76,0.30592266]
[1749476511079,1.14273829,654.83,653.76,0.30592266]
[1749476511276,0.843,654.91,653.76,0.30592266]
[1749476511277,1.13815245,654.82,653.76,0.30592266]
[1749476511474,1.13815245,654.81,653.76,0.30592266]
[1749476511778,1.13815245,654.8,653.76,0.30592266]
[1749476511979,1.13815245,654.79,653.76,0.30592266]
[1749476512180,2.37950873,654.9,653.76,0.30592266]
[1749476512380,1.13755698,654.89,653.76,0.30592266]
[1749476512578,1.13755698,654.88,653.76,0.30592266]
[1749476512776,1.13755698,654.87,653.76,0.30592266]
[1749476512981,1.13755698,654.86,653.76,0.30592266]
[1749476513181,1.13755698,654.85,653.76,0.30592266]
[1749476513381,1.13755698,654.84,653.76,0.30592266]
[1749476513580,1.13755698,654.83,653.76,0.30592266]
[1749476513782,1.13755698,654.82,653.76,0.30592266]
[1749476513982,1.13755698,654.81,653.76,0.30592266]
[1749476514183,1.13755698,654.8,653.76,0.30592266]
[1749476514483,1.13755698,654.79,653.76,0.30592266]
[1749476514783,1.13755698,654.78,653.76,0.30592266]
[1749476515082,1.13755698,654.77,653.76,0.30592266]
[1749476515282,1.13755698,654.76,653.76,0.30592266]
[1749476515480,1.13755698,654.75,653.76,0.30592266]
[1749476515683,1.13755698,654.74,653.76,0.30592266]
[1749476515882,2.22241803,654.89,653.76,0.30592266]
[1749476516182,2.37785813,654.88,653.76,0.30592266]
[1749476516379,2.37785813,654.87,653.76,0.30592266]
[1749476516579,1.13755698,654.86,653.76,0.30592266]
[1749476516783,1.13755698,654.85,653.76,0.30592266]
[1749476517083,1.13755698,654.84,653.76,0.30592266]
[1749476517279,1.13755698,654.83,653.76,0.30592266]
[1749476517480,1.13755698,654.82,653.76,0.30592266]
[1749476517783,1.13755698,654.81,653.76,0.30592266]
[1749476517982,1.13755698,654.8,653.76,0.30592266]
[1749476518181,1.97525329,654.91,653.76,0.30592266]
[1749476518182,1.13755698,654.79,653.76,0.30592266]
[1749476518379,1.13755698,654.78,653.76,0.30592266]
[1749476518579,1.13755698,654.77,653.76,0.30592266]
[1749476518776,2.3777582,654.88,653.76,0.30592266]
[1749476519082,3.46239022,654.87,653.76,0.30592266]
[1749476519378,2.37775557,654.86,653.76,0.30592266]
[1749476519584,2.37775893,654.85,653.76,0.30592266]
[1749476519786,2.37775372,654.84,653.76,0.30592266]
[1749476519981,1.13755698,654.83,653.76,0.30592266]
[1749476520186,1.13755698,654.82,653.76,0.30592266]
[1749476520385,1.13755698,654.81,653.76,0.30592266]
[1749476520583,1.13755698,654.8,653.76,0.30592266]
[1749476520783,1.13755698,654.79,653.76,0.30592266]
[1749476521083,1.13755698,654.78,653.76,0.30592266]
[1749476521289,1.13755698,654.77,653.76,0.30592266]
[1749476521482,1.13755698,654.76,653.76,0.30592266]
[1749476521682,1.13755698,654.75,653.76,0.30592266]
[1749476521886,1.13755698,654.74,653.76,0.30592266]
[1749476522086,1.13755698,654.73,653.76,0.30592266]
[1749476522286,1.13755698,654.72,653.76,0.30592266]
[1749476522485,1.13755698,654.71,653.76,0.30592266]
[1749476522684,1.13755698,654.7,653.76,0.30592266]
[1749476522986,1.13755698,654.69,653.76,0.30592266]
[1749476523188,1.69072874,654.86,653.76,0.30592266]
[1749476523386,1.13755698,654.85,653.76,0.30592266]
[1749476523587,1.13755698,654.84,653.76,0.30592266]
[1749476523787,1.13755698,654.83,653.76,0.30592266]
[1749476523988,1.13755698,654.82,653.76,0.30592266]
[1749476524186,1.13755698,654.81,653.76,0.30592266]
[1749476524388,1.13755698,654.8,653.76,0.30592266]
[1749476524684,1.13755698,654.79,653.76,0.30592266]
[1749476524885,1.13755698,654.78,653.76,0.30592266]
[1749476525087,1.13755698,654.77,653.76,0.30592266]
[1749476525384,1.13755698,654.76,653.76,0.30592266]
[1749476525590,1.13755698,654.75,653.76,0.30592266]
[1749476525790,1.13755698,654.74,653.76,0.30592266]
[1749476525986,1.13755698,654.73,653.76,0.30592266]
[1749476526289,1.13755698,654.72,653.76,0.30592266]
[1749476526486,1.13755698,654.71,653.76,0.30592266]
[1749476526791,1.13755698,654.7,653.76,0.30592266]
[1749476526991,1.13755698,654.69,653.76,0.30592266]
[1749476527190,1.13755698,654.68,653.76,0.30592266]
[1749476527392,1.13755698,654.67,653.76,0.30592266]
[1749476527687,3.46157954,654.83,653.76,0.30592266]
[1749476527989,3.46157954,654.82,653.76,0.30592266]
[1749476528288,2.37662495,654.81,653.76,0.30592266]
[1749476528486,2.37676501,654.8,653.76,0.30592266]
[1749476528689,2.37676503,654.79,653.76,0.30592266]
[1749476528887,1.13755698,654.78,653.76,0.30592266]
[1749476529085,1.13755698,654.77,653.76,0.30592266]
[1749476529387,1.13755698,654.76,653.76,0.30592266]
[1749476529585,1.13755698,654.75,653.76,0.30592266]
[1749476529791,1.13755698,654.74,653.76,0.30592266]
[1749476529987,1.13755698,654.73,653.76,0.30592266]
[1749476530191,1.13755698,654.72,653.76,0.30592266]
[1749476530490,1.13755698,654.71,653.76,0.30592266]
[1749476530690,1.13755698,654.7,653.76,0.30592266]
[1749476530987,1.13755698,654.69,653.76,0.30592266]
[1749476531190,1.13755698,654.68,653.76,0.30592266]
[1749476531387,2.37745284,654.8,653.76,0.30592266]
[1749476531687,2.37703123,654.79,653.76,0.30592266]
[1749476531892,2.37704074,654.78,653.76,0.30592266]
[1749476532095,2.3770405,654.77,653.76,0.30592266]
[1749476532294,1.13755698,654.76,653.76,0.30592266]
[1749476532487,1.13755698,654.75,653.76,0.30592266]
[1749476532792,1.13755698,654.74,653.76,0.30592266]
[1749476532994,1.13755698,654.73,653.76,0.30592266]
[1749476533193,1.13755698,654.72,653.76,0.30592266]
[1749476533394,1.13755698,654.71,653.76,0.30592266]
[1749476533689,1.13755698,654.7,653.76,0.30592266]
[1749476533887,2.37628757,654.79,653.76,0.30592266]
[1749476534091,2.37629139,654.78,653.76,0.30592266]
[1749476534292,1.13755698,654.77,653.76,0.30592266]
[1749476534490,1.13755698,654.76,653.76,0.30592266]
[1749476534690,1.13755698,654.75,653.76,0.30592266]
[1749476534893,1.13755698,654.74,653.76,0.30592266]
[1749476535090,1.13755698,654.73,653.76,0.30592266]
[1749476535293,1.13755698,654.72,653.76,0.30592266]
[1749476535492,1.13755698,654.85,653.76,0.30592266]
[1749476535693,1.13755698,654.84,653.76,0.30592266]
[1749476535996,1.13755698,654.83,653.76,0.30592266]
[1749476536194,1.13755698,654.82,653.76,0.30592266]
[1749476536398,1.13755698,654.81,653.76,0.30592266]
[1749476536594,1.13755698,654.8,653.76,0.30592266]
[1749476536794,1.13755698,654.79,653.76,0.30592266]
[1749476537000,1.13755698,654.78,653.76,0.30592266]
[1749476537300,1.13755698,654.77,653.76,0.30592266]
[1749476537498,1.13755698,654.76,653.76,0.30592266]
[1749476537797,1.13755698,654.75,653.76,0.30592266]
[1749476538094,1.13755698,654.74,653.76,0.30592266]
[1749476538296,1.13755698,654.73,653.76,0.30592266]
[1749476538494,1.13755698,654.72,653.76,0.30592266]
[1749476538796,1.13755698,654.71,653.76,0.30592266]
[1749476538999,1.13755698,654.7,653.76,0.30592266]
[1749476539198,1.13755698,654.69,653.76,0.30592266]
[1749476539401,1.13755698,654.68,653.76,0.30592266]
[1749476539599,1.13755698,654.67,653.76,0.30592266]
[1749476539899,1.13755698,654.66,653.76,0.30592266]
[1749476540195,1.13755698,654.65,653.76,0.30592266]
[1749476540394,1.13755698,654.64,653.76,0.30592266]
[1749476540701,1.13755698,654.63,653.76,0.30592266]
[1749476540895,1.13755698,654.62,653.76,0.30592266]
[1749476541099,2.37803002,654.77,653.76,0.30592266]
[1749476541296,1.13755698,654.76,653.76,0.30592266]
[1749476541497,1.13755698,654.75,653.76,0.30592266]
[1749476541700,1.13755698,654.74,653.76,0.30592266]
[1749476541896,1.13755698,654.73,653.76,0.30592266]
[1749476542098,1.13755698,654.72,653.76,0.30592266]
[1749476542402,1.13755698,654.71,653.76,0.30592266]
[1749476542601,1.13755698,654.7,653.76,0.30592266]
[1749476542896,1.24016753,654.77,653.76,0.30592266]
[1749476542897,1.13755698,654.69,653.76,0.30592266]
[1749476543101,1.13755698,654.68,653.76,0.30592266]
[1749476543299,1.13755698,654.67,653.76,0.30592266]
[1749476543595,1.13755698,654.66,653.76,0.30592266]
[1749476543799,1.13755698,654.65,653.76,0.30592266]
[1749476543999,1.13755698,654.64,653.76,0.30592266]
[1749476544200,1.13755698,654.63,653.76,0.30592266]
[1749476544397,1.13755698,654.77,653.76,0.30592266]
[1749476544597,1.13755698,654.76,653.76,0.30592266]
[1749476544802,1.13755698,654.75,653.76,0.30592266]
[1749476545098,1.13755698,654.74,653.76,0.30592266]
[1749476545297,1.13755698,654.73,653.76,0.30592266]
[1749476545596,0.843,654.91,653.76,0.30592266]
[1749476545597,1.13755698,654.72,653.76,0.30592266]
[1749476545798,1.13755698,654.71,653.76,0.30592266]
[1749476545997,1.13755698,654.7,653.76,0.30592266]
[1749476546200,1.13755698,654.69,653.76,0.30592266]
[1749476546402,1.13755698,654.68,653.76,0.30592266]
[1749476546697,1.13755698,654.67,653.76,0.30592266]
[1749476546897,1.13755698,654.66,653.76,0.30592266]
[1749476547098,1.13755698,654.65,653.76,0.30592266]
[1749476547297,1.13755698,654.64,653.76,0.30592266]
[1749476547499,1.13755698,654.63,653.76,0.30592266]
[1749476547801,1.13755698,654.62,653.76,0.30592266]
[1749476547999,1.13755698,654.61,653.76,0.30592266]
[1749476548202,1.13755698,654.6,653.76,0.30592266]
[1749476548398,2.37674279,654.78,653.76,0.30592266]
[1749476548601,1.13755698,654.77,653.76,0.30592266]
[1749476548802,1.13755698,654.76,653.76,0.30592266]
[1749476549099,1.13755698,654.75,653.76,0.30592266]
[1749476549398,1.13755698,654.74,653.76,0.30592266]
[1749476549602,1.13755698,654.73,653.76,0.30592266]
[1749476549899,1.13755698,654.72,653.76,0.30592266]
[1749476550104,1.13755698,654.71,653.76,0.30592266]
[1749476550303,1.13225329,654.84,653.76,0.30592266]
[1749476550304,1.13755698,654.7,653.76,0.30592266]
[1749476550601,1.13755698,654.69,653.76,0.30592266]
[1749476550899,1.13755698,654.68,653.76,0.30592266]
[1749476551103,1.13755698,654.67,653.76,0.30592266]
[1749476551301,1.13755698,654.66,653.76,0.30592266]
[1749476551503,1.13755698,654.65,653.76,0.30592266]
[1749476551700,1.13755698,654.64,653.76,0.30592266]
[1749476551905,1.13755698,654.63,653.76,0.30592266]
[1749476552201,1.13755698,654.62,653.76,0.30592266]
[1749476552401,1.13755698,654.61,653.76,0.30592266]
[1749476552601,1.13755698,654.6,653.76,0.30592266]
[1749476552802,1.13755698,654.59,653.76,0.30592266]
[1749476553001,1.13755698,654.58,653.76,0.30592266]
[1749476553201,1.13755698,654.57,653.76,0.30592266]
[1749476553406,1.13755698,654.56,653.76,0.30592266]
[1749476553703,2.77487372,654.8,653.76,0.30592266]
[1749476553905,1.13755698,654.79,653.76,0.30592266]
[1749476554100,1.13755698,654.78,653.76,0.30592266]
[1749476554306,1.13755698,654.77,653.76,0.30592266]
[1749476554602,1.13755698,654.76,653.76,0.30592266]
[1749476554803,1.13755698,654.75,653.76,0.30592266]
[1749476555006,1.13755698,654.74,653.76,0.30592266]
[1749476555206,1.13755698,654.73,653.76,0.30592266]
[1749476555505,1.13755698,654.72,653.76,0.30592266]
[1749476555703,1.13755698,654.71,653.76,0.30592266]
[1749476555903,1.13755698,654.7,653.76,0.30592266]
[1749476556100,1.13755698,654.69,653.76,0.30592266]
[1749476556402,1.13755698,654.68,653.76,0.30592266]
[1749476556605,1.13755698,654.67,653.76,0.30592266]
[1749476556902,1.13755698,654.66,653.76,0.30592266]
[1749476557106,1.13755698,654.65,653.76,0.30592266]
[1749476557306,1.377,654.79,653.76,0.30592266]
[1749476557506,1.13892773,654.78,653.76,0.30592266]
[1749476557706,1.13892773,654.77,653.76,0.30592266]
[1749476558003,1.13892773,654.76,653.76,0.30592266]
[1749476558307,1.13892773,654.75,653.76,0.30592266]
[1749476558506,1.13892773,654.74,653.76,0.30592266]
[1749476558703,1.13892773,654.73,653.76,0.30592266]
[1749476558907,1.13892773,654.72,653.76,0.30592266]
[1749476559105,1.13892773,654.71,653.76,0.30592266]
[1749476559305,1.13892773,654.7,653.76,0.30592266]
[1749476559507,1.13892773,654.69,653.76,0.30592266]
[1749476559706,1.13892773,654.68,653.76,0.30592266]
[1749476559908,1.13892773,654.67,653.76,0.30592266]
[1749476560105,1.13892773,654.66,653.76,0.30592266]
[1749476560315,1.13892773,654.65,653.76,0.30592266]
[1749476560508,1.13892773,654.64,653.76,0.30592266]
[1749476560806,1.13892773,654.63,653.76,0.30592266]
[1749476561009,1.13892773,654.62,653.76,0.30592266]
[1749476561206,1.13892773,654.61,653.76,0.30592266]
[1749476561508,1.13892773,654.6,653.76,0.30592266]
[1749476561704,1.13892773,654.59,653.76,0.30592266]
[1749476561903,1.13892773,654.58,653.76,0.30592266]
[1749476562103,1.13892773,654.57,653.76,0.30592266]
[1749476562304,1.13892773,654.56,653.76,0.30592266]
[1749476562504,1.13892773,654.55,653.76,0.30592266]
[1749476562704,1.13892773,654.54,653.76,0.30592266]
[1749476562904,1.13892773,654.53,653.76,0.30592266]
[1749476563104,2.38114614,654.74,653.76,0.30592266]
[1749476563307,1.13892773,654.73,653.76,0.30592266]
[1749476563504,1.13892773,654.72,653.76,0.30592266]
[1749476563705,1.13892773,654.71,653.76,0.30592266]
[1749476563908,1.13892773,654.7,653.76,0.30592266]
[1749476564105,1.13892773,654.69,653.76,0.30592266]
[1749476564306,1.13892773,654.68,653.76,0.30592266]
[1749476564609,1.13892773,654.67,653.76,0.30592266]
[1749476564808,1.13892773,654.66,653.76,0.30592266]
[1749476565111,1.13892773,654.65,653.76,0.30592266]
[1749476565306,1.13892773,654.64,653.76,0.30592266]
[1749476565610,1.13892773,654.63,653.76,0.30592266]
[1749476565808,1.13892773,654.62,653.76,0.30592266]
[1749476566109,1.13892773,654.61,653.76,0.30592266]
[1749476566309,1.13892773,654.77,653.76,0.30592266]
[1749476566506,1.13892773,654.76,653.76,0.30592266]
[1749476566805,1.13892773,654.75,653.76,0.30592266]
[1749476567008,1.13892773,654.74,653.76,0.30592266]
[1749476567209,1.13892773,654.73,653.76,0.30592266]
[1749476567413,1.13892773,654.78,653.76,0.30592266]
[1749476567709,1.13892773,654.77,653.76,0.30592266]
[1749476567914,1.13892773,654.76,653.76,0.30592266]
[1749476568112,1.13892773,654.75,653.76,0.30592266]
[1749476568315,1.13892773,654.74,653.76,0.30592266]
[1749476568518,1.13892773,654.73,653.76,0.30592266]
[1749476568720,1.377,654.79,653.76,0.30592266]
[1749476570218,1.14142355,655.09,653.76,0.30592266]
[1749476570515,1.44672977,655.08,653.76,0.30592266]
[1749476570720,1.14142355,655.07,653.76,0.30592266]
[1749476571717,0.30530622,655.08,653.76,0.30592266]
[1749476574018,1.374,655.07,653.76,0.30592266]
[1749476574417,2.51542355,655.07,653.76,0.30592266]
[1749476577923,1.14142355,655.06,653.76,0.30592266]
[1749476578218,1.14142355,655.05,653.76,0.30592266]
[1749476578418,1.14142355,655.04,653.76,0.30592266]
[1749476578617,1.14142355,655.03,653.76,0.30592266]
[1749476578818,1.14142355,655.02,653.76,0.30592266]
[1749476579021,1.14142355,655.06,653.76,0.30592266]
[1749476579221,1.14142355,655.05,653.76,0.30592266]
[1749476579421,1.14142355,655.04,653.76,0.30592266]
[1749476579621,1.14142355,655.03,653.76,0.30592266]
[1749476579818,1.14142355,655.02,653.76,0.30592266]
[1749476580019,1.14142355,655.01,653.76,0.30592266]
[1749476580223,1.374,655.07,653.76,0.30592266]
[1749476580224,1.14142355,655.06,653.76,0.30592266]
[1749476580425,1.374,655.07,653.76,0.30592266]
[1749476580426,1.14142355,655.05,653.76,0.30592266]
[1749476580620,1.14142355,655.04,653.76,0.30592266]
[1749476580824,1.14142355,655.03,653.76,0.30592266]
[1749476581024,1.14142355,655.02,653.76,0.30592266]
[1749476581220,1.14142355,655.01,653.76,0.30592266]
[1749476581526,1.14142355,655.0,653.76,0.30592266]
[1749476581726,1.14142355,654.99,653.76,0.30592266]
[1749476581926,1.14142355,654.98,653.76,0.30592266]
[1749476582122,1.14142355,654.97,653.76,0.30592266]
[1749476582326,1.14142355,654.96,653.76,0.30592266]
[1749476582526,1.14142355,654.95,653.76,0.30592266]
[1749476582826,1.14142355,654.94,653.76,0.30592266]
[1749476583026,1.14142355,654.93,653.76,0.30592266]
[1749476583325,1.14142355,655.06,653.76,0.30592266]
[1749476583525,1.14142355,655.05,653.76,0.30592266]
[1749476583724,1.14142355,655.04,653.76,0.30592266]
[1749476583929,1.14142355,655.03,653.76,0.30592266]
[1749476584130,1.14142355,655.02,653.76,0.30592266]
[1749476584429,1.14142355,655.01,653.76,0.30592266]
[1749476584629,1.14142355,655.0,653.76,0.30592266]
[1749476584829,1.14142355,654.99,653.76,0.30592266]
[1749476585026,1.14142355,654.98,653.76,0.30592266]
[1749476585230,1.14142355,654.97,653.76,0.30592266]
[1749476585428,1.14142355,654.96,653.76,0.30592266]
[1749476585633,1.14142355,654.95,653.76,0.30592266]
[1749476585930,1.14142355,654.94,653.76,0.30592266]
[1749476586134,1.14142355,655.06,653.76,0.30592266]
[1749476586336,1.14142355,655.05,653.76,0.30592266]
[1749476586634,1.14142355,655.04,653.76,0.30592266]
[1749476586832,1.14142355,655.03,653.76,0.30592266]
[1749476587029,1.14142355,655.02,653.76,0.30592266]
[1749476587234,1.14142355,655.01,653.76,0.30592266]
[1749476587432,1.14142355,655.0,653.76,0.30592266]
[1749476587633,1.14142355,654.99,653.76,0.30592266]
[1749476587832,1.14142355,654.98,653.76,0.30592266]
[1749476588134,1.14142355,654.97,653.76,0.30592266]
[1749476588438,1.14142355,654.96,653.76,0.30592266]
[1749476588634,1.14142355,654.95,653.76,0.30592266]
[1749476588837,1.14142355,654.94,653.76,0.30592266]
[1749476589042,1.14142355,654.93,653.76,0.30592266]
[1749476589242,1.14142355,654.92,653.76,0.30592266]
[1749476589441,1.14142355,654.91,653.76,0.30592266]
[1749476589639,1.14142355,654.9,653.76,0.30592266]
[1749476589838,2.39176766,655.06,653.76,0.30592266]
[1749476590039,1.14142355,655.05,653.76,0.30592266]
[1749476590344,1.14142355,655.04,653.76,0.30592266]
[1749476590538,1.14142355,655.03,653.76,0.30592266]
[1749476590742,1.14142355,655.02,653.76,0.30592266]
[1749476590940,1.14142355,655.01,653.76,0.30592266]
[1749476591242,1.14142355,655.0,653.76,0.30592266]
[1749476591439,1.14142355,654.99,653.76,0.30592266]
[1749476591738,1.14142355,654.98,653.76,0.30592266]
[1749476591942,1.14142355,654.97,653.76,0.30592266]
[1749476592141,1.14142355,654.96,653.76,0.30592266]
[1749476592342,1.14142355,654.95,653.76,0.30592266]
[1749476592540,1.14142355,654.94,653.76,0.30592266]
[1749476592744,1.14142355,654.93,653.76,0.30592266]
[1749476593044,1.14142355,654.92,653.76,0.30592266]
[1749476593241,1.14142355,655.05,653.76,0.30592266]
[1749476593440,1.14142355,655.04,653.76,0.30592266]
[1749476593741,1.14142355,655.03,653.76,0.30592266]
[1749476593939,1.14142355,655.02,653.76,0.30592266]
[1749476594140,1.14142355,655.01,653.76,0.30592266]
[1749476594339,1.14142355,655.0,653.76,0.30592266]
[1749476594639,1.14142355,654.99,653.76,0.30592266]
[1749476594840,1.14142355,654.98,653.76,0.30592266]
[1749476595040,1.14142355,654.97,653.76,0.30592266]
[1749476595239,1.14142355,654.96,653.76,0.30592266]
[1749476595441,1.14142355,654.95,653.76,0.30592266]
[1749476595641,1.14142355,654.94,653.76,0.30592266]
[1749476595841,1.14142355,654.93,653.76,0.30592266]
[1749476596041,1.14142355,654.92,653.76,0.30592266]
[1749476596240,1.14142355,654.91,653.76,0.30592266]
[1749476596545,1.14142355,654.9,653.76,0.30592266]
[1749476596743,1.14142355,654.89,653.76,0.30592266]
[1749476596941,1.14142355,654.88,653.76,0.30592266]
[1749476597142,1.14142355,654.87,653.76,0.30592266]
[1749476597342,1.14142355,654.86,653.76,0.30592266]
[1749476597542,1.14142355,654.85,653.76,0.30592266]
[1749476597742,1.14142355,654.84,653.76,0.30592266]
[1749476597943,1.14142355,654.83,653.76,0.30592266]
[1749476598148,1.14142355,654.82,653.76,0.30592266]
[1749476598443,1.14142355,654.81,653.76,0.30592266]
[1749476598648,1.14142355,654.8,653.76,0.30592266]
[1749476598843,2.22777316,655.03,653.76,0.30592266]
[1749476599049,2.22740535,655.02,653.76,0.30592266]
[1749476599343,2.38328634,655.01,653.76,0.30592266]
[1749476599548,1.14142355,655.0,653.76,0.30592266]
[1749476599844,1.14142355,654.99,653.76,0.30592266]
[1749476600049,1.14142355,654.98,653.76,0.30592266]
[1749476600345,1.14142355,654.97,653.76,0.30592266]
[1749476600550,1.14142355,654.96,653.76,0.30592266]
[1749476600844,1.14142355,654.95,653.76,0.30592266]
[1749476601044,1.14142355,654.94,653.76,0.30592266]
[1749476601249,1.14142355,654.93,653.76,0.30592266]
[1749476601546,1.14142355,654.92,653.76,0.30592266]
[1749476601846,1.14142355,654.91,653.76,0.30592266]
[1749476602049,1.14142355,654.9,653.76,0.30592266]
[1749476602245,1.14142355,654.89,653.76,0.30592266]
[1749476602444,1.14142355,654.88,653.76,0.30592266]
[1749476602749,1.14142355,654.87,653.76,0.30592266]
[1749476603051,1.14142355,654.86,653.76,0.30592266]
[1749476603346,2.38768788,655.06,653.76,0.30592266]
[1749476603547,2.38767093,655.05,653.76,0.30592266]
[1749476603748,2.38769809,655.04,653.76,0.30592266]
[1749476603945,2.38772771,655.03,653.76,0.30592266]
[1749476604150,1.14142355,655.02,653.76,0.30592266]
[1749476604351,1.14142355,655.01,653.76,0.30592266]
[1749476604548,1.14142355,655.0,653.76,0.30592266]
[1749476604752,1.14142355,654.99,653.76,0.30592266]
[1749476605049,1.14142355,654.98,653.76,0.30592266]
[1749476605249,1.14142355,654.97,653.76,0.30592266]
[1749476605447,1.14142355,654.96,653.76,0.30592266]
[1749476605747,1.14142355,654.95,653.76,0.30592266]
[1749476605947,1.14142355,654.94,653.76,0.30592266]
[1749476606148,1.14142355,654.93,653.76,0.30592266]
[1749476606347,1.14142355,654.92,653.76,0.30592266]
[1749476606547,1.374,655.07,653.76,0.30592266]
[1749476606548,1.14142355,654.91,653.76,0.30592266]
[1749476606748,1.14142355,654.9,653.76,0.30592266]
[1749476607051,1.14142355,654.89,653.76,0.30592266]
[1749476607251,1.14142355,654.88,653.76,0.30592266]
[1749476607447,1.14142355,654.87,653.76,0.30592266]
[1749476607652,3.47948311,655.02,653.76,0.30592266]
[1749476607952,2.50931503,655.07,653.76,0.30592266]
[1749476607953,2.94304037,655.01,653.76,0.30592266]
[1749476608252,2.94384962,655.0,653.76,0.30592266]
[1749476608452,2.38849658,654.99,653.76,0.30592266]
[1749476608651,2.38849939,654.98,653.76,0.30592266]
[1749476608851,1.14142355,654.97,653.76,0.30592266]
[1749476609051,1.14142355,654.96,653.76,0.30592266]
[1749476609249,1.14142355,654.95,653.76,0.30592266]
[1749476609455,1.14142355,654.94,653.76,0.30592266]
[1749476609649,1.14142355,654.93,653.76,0.30592266]
[1749476609854,1.14142355,654.92,653.76,0.30592266]
[1749476610050,1.14142355,654.91,653.76,0.30592266]
[1749476610257,1.14142355,654.9,653.76,0.30592266]
[1749476610556,1.14142355,654.89,653.76,0.30592266]
[1749476610751,1.14142355,654.88,653.76,0.30592266]
[1749476610955,1.14142355,654.87,653.76,0.30592266]
[1749476611157,1.14142355,654.86,653.76,0.30592266]
[1749476611357,1.14142355,654.85,653.76,0.30592266]
[1749476611654,1.14142355,654.84,653.76,0.30592266]
[1749476611857,2.23253231,655.01,653.76,0.30592266]
[1749476612054,1.374,655.07,653.76,0.30592266]
[1749476612055,1.6970161,655.0,653.76,0.30592266]
[1749476612253,1.14142355,654.99,653.76,0.30592266]
[1749476612458,1.13414835,654.98,653.76,0.30592266]
[1749476612655,1.13414835,654.97,653.76,0.30592266]
[1749476612858,1.13414835,654.96,653.76,0.30592266]
[1749476613059,1.13414835,654.95,653.76,0.30592266]
[1749476613256,1.13414835,654.94,653.76,0.30592266]
[1749476613456,1.13414835,654.93,653.76,0.30592266]
[1749476613654,1.13414835,654.92,653.76,0.30592266]
[1749476613858,1.13414835,654.91,653.76,0.30592266]
[1749476614055,1.374,655.07,653.76,0.30592266]
[1749476614056,1.13414835,654.9,653.76,0.30592266]
[1749476614258,1.13414835,654.89,653.76,0.30592266]
[1749476614462,1.13414835,654.88,653.76,0.30592266]
[1749476614761,1.13414835,654.87,653.76,0.30592266]
[1749476614961,1.13414835,654.86,653.76,0.30592266]
[1749476615258,4.02645096,655.05,653.76,0.30592266]
[1749476615457,1.13414835,655.04,653.76,0.30592266]
[1749476615661,1.13414835,655.03,653.76,0.30592266]
[1749476615960,1.374,655.07,653.76,0.30592266]
[1749476615961,1.13414835,655.02,653.76,0.30592266]
[1749476616155,1.13414835,655.01,653.76,0.30592266]
[1749476616360,1.13414835,655.0,653.76,0.30592266]
[1749476616659,1.13414835,654.99,653.76,0.30592266]
[1749476616858,1.13414835,654.98,653.76,0.30592266]
[1749476617157,1.13414835,654.97,653.76,0.30592266]
[1749476617361,0.55549966,655.06,653.76,0.30592266]
[1749476617362,1.13414835,654.96,653.76,0.30592266]
[1749476617662,1.13414835,654.95,653.76,0.30592266]